Cogmind - Beta 13 @@@ ROGUE MODE // 2024.03.31 @ 15:38:00 Player: firstiteration Result: Destroyed by L-31 Rogue with Katana Performance ------------- Evolutions (1) 500 Regions Visited (2) 400 Robots Destroyed (29) 145 Value Destroyed (577) 577 Prototype IDs (0) 0 Alien Tech Used (0) 0 Bonus (0) 0 TOTAL SCORE: 1622 Bonus ------- None Cogmind --------- Core Integrity 0/400 Matter 62/300 Energy 89/100 System Corruption 0% Temperature Cool (0) Movement Core (400) Ox7 Location -9/Materials Parts ------- > --- POWER (1) -------- (None) > --- PROPULSION (2) --- (None) > --- UTILITY (4) ------ Large Storage Unit > --- WEAPON (2) ------- Light Assault Rifle Grenade Launcher > --- INVENTORY (15) --- Large Storage Unit Grenade Launcher Grenade Launcher Grenade Launcher Grenade Launcher Peak State ------------ > --- POWER ------------ Ion Engine > --- PROPULSION ------- Light Treads Light Treads > --- UTILITY ---------- Heat Sink Medium Storage Unit > --- WEAPON ----------- Light Cannon Light Cannon > --- INVENTORY -------- Ion Engine Light Assault Rifle Grenade Launcher Grenade Launcher Grenade Launcher Grenade Launcher Grenade Launcher Grenade Launcher Grenade Launcher Grenade Launcher [Rating: 8] Favorites ----------- Power Ion Engine Engine Ion Engine Propulsion Light Treads Treads Light Treads Utility Heat Sink Device Heat Sink Storage Large Storage Unit Weapon Light Cannon Energy Gun EM Pulse Gun Ballistic Gun Light Assault Rifle Ballistic Cannon Light Cannon Launcher Grenade Launcher Build | -11 -10 -9 ------- Run | Yrd Mat Mat Slots Evolved 2 | . . 2 Power . | . . . Propulsion . | . . . Utility 2 | . . 2 Weapon . | . . . Parts Attached 25 | 6 12 7 Power 3 | 1 . 2 Engine 3 | 1 . 2 Core . | . . . Reactor . | . . . Propulsion 4 | 2 2 . Treads 4 | 2 2 . Leg . | . . . Wheel . | . . . Hover . | . . . Flight . | . . . Utility 5 | 1 4 . Device 2 | . 2 . Storage 3 | 1 2 . Processor . | . . . Hackware . | . . . Protection . | . . . Artifact . | . . . Weapon 13 | 2 6 5 Energy Gun 3 | 2 1 . Energy Cannon . | . . . Ballistic Gun 1 | . . 1 Ballistic Cannon 4 | . 4 . Launcher 5 | . 1 4 Special Weapon . | . . . Impact Weapon . | . . . Slashing Weapon . | . . . Piercing Weapon . | . . . Special Melee Weapon . | . . . Unidentified Prototypes . | . . . Parts Lost 11 | . 2 9 Power 3 | . . 3 Propulsion 2 | . . 2 Utility 1 | . . 1 Weapon 5 | . 2 3 Highest Loss Streak 9 | . 1 9 To Critical Strikes 1 | . . 1 Average Slot Usage (%) 85 | . 90 69 Engine 13 | . 14 9 Treads 25 | . 26 18 Device 6 | . 6 9 Storage 13 | . 14 11 Energy Gun 5 | . 6 . Ballistic Cannon 16 | . 16 18 Launcher 3 | . 4 . Naked Turns . | . . . Heaviest Build 32 | 14 32 32 Greatest Support 40 | 40 40 40 Greatest Overweight (x) . | . . . Average Overweight (x) . | . . . Largest Inventory Capacity 15 | 8 15 15 Average Capacity 11 | 7 11 15 Most Carried 12 | 5 12 12 Average Carried 7 | 1 7 11 Final Capacity 15 | 8 15 15 Final Carried 11 | 2 11 5 Class Distribution -------------------- 100% | Mutant Dominant Class ---------------- Mutant | -10/Materials Mutant | -9/Materials Resources | -11 -10 -9 ----------- Run | Yrd Mat Mat Matter Collected 665 | 245 393 27 Remotely . | . . . Salvage Created 723 | . 485 238 Parts 35 | . 26 9 Haulers Intercepted 1 | . 1 . Recyclers Shooed 2 | . 1 1 Parts Field Recycled . | . . . Retrieved Matter . | . . . Parts Self-Destructed . | . . . Prevented . | . . . Kills | -11 -10 -9 ------- Run | Yrd Mat Mat Combat Hostiles Destroyed 17 | . 11 6 Guns 3 | . 2 1 Cannons 9 | . 5 4 AOE 3 | . 2 1 Classes Destroyed 8 | . 6 2 Worker 4 | . 4 . Hauler 1 | . 1 . Recycler 3 | . 1 2 Operator 1 | . . 1 Watcher 3 | . 2 1 Swarmer 6 | . 3 3 Grunt 9 | . 8 1 Sentry 2 | . . 2 Best Kill Streak 3 | . 3 3 Combat Bots Only 3 | . 2 3 Max Kills in Single Turn 2 | . 2 1 Gunslinging . | . . . Exploded 1 | . 1 1 Melee . | . . . Uniques/NPCs Destroyed . | . . . Combat | -11 -10 -9 -------- Run | Yrd Mat Mat Hostile Shots Fired 166 | . 83 83 Missed 48 | . 29 19 Damage Taken 1820 | . 647 1173 Core 537 | . 134 403 Absorbed by Shields . | . . . Regen/Repaired (Parts) 180 | . 180 . Core Remaining (%) 73 | 100 46 . Volleys Fired 100 | . 62 38 Largest 2 | . 2 2 Hottest 80 | . 80 70 Shots Fired 166 | . 97 69 Gun 61 | . 39 22 Cannon 94 | . 52 42 Launcher 11 | . 6 5 Special . | . . . Kinetic 116 | . 52 64 Thermal . | . . . Explosive 11 | . 6 5 Electromagnetic 39 | . 39 . Robot Hit Streak 9 | . 7 9 Robot Miss Streak 12 | . 12 2 Penetration Max . | . . . Secondary Targets . | . . . Shots Hit Robots 102 | . 50 52 Core Hits 39 | . 23 16 Critical Kills . | . . . Critical Parts Destroyed . | . . . Critical Strikes 3 | . . 3 Blast 3 | . . 3 Melee Attacks . | . . . Impact . | . . . Slashing . | . . . Piercing . | . . . Sneak Attacks . | . . . Combat Hostiles . | . . . Follow-up Attacks . | . . . Damage Inflicted 2210 | . 1175 1035 Guns 410 | . 294 116 Cannons 1100 | . 504 596 Explosions 700 | . 377 323 Melee . | . . . Ramming . | . . . Kinetic 1216 | . 504 712 Thermal 87 | . 87 . Explosive 613 | . 290 323 Electromagnetic 294 | . 294 . Impact . | . . . Slashing . | . . . Piercing . | . . . Highest Corruption . | . . . Average Corruption . | . . . Corruption Purged . | . . . Corruption Blocked . | . . . Overload Shots . | . . . Overflow Damage 21 | . 14 7 Projectiles 10 | . 10 . Explosions 11 | . 4 7 Melee . | . . . Knockbacks 11 | . 6 5 Impact . | . . . Kinetic 11 | . 6 5 Secondary . | . . . Self-Inflicted Damage 187 | . 88 99 Shots 9 | . 4 5 Rammed . | . . . Targets Rammed . | . . . Kicked . | . . . Crushed . | . . . Highest Temperature 324 | . 324 14 Average Temperature 100 | . 113 8 Received Heat Transfer 417 | . 240 177 Effects 1 | . 1 . Interference 1 | . 1 . Siege Activations . | . . . Robots Corrupted 2 | . 2 . Combat Hostiles 2 | . 2 . Parts Fried . | . . . Impact Corruptions . | . . . Robots Melted . | . . . Combat Hostiles . | . . . Parts Melted . | . . . Heat Transferred 100 | . 100 . Parts Sabotaged . | . . . Parts Stolen . | . . . Parts Stripped . | . . . Power Chain Reactions 1 | . 1 . Alert | -11 -10 -9 ------- Run | Yrd Mat Mat Peak Influence 179 | . 166 179 Initial . | . . . Average 68 | . 73 67 Maximum Alert Level . | . . . Low Security (%) 100 | 100 100 100 Level 1 . | . . . Level 2 . | . . . Level 3 . | . . . Level 4 . | . . . Level 5 . | . . . High Security . | . . . Max Security . | . . . Squads Dispatched 1 | . 1 . Investigation . | . . . Extermination . | . . . Reinforcement 1 | . 1 . Assault . | . . . Garrison . | . . . Intercept . | . . . Searches Triggered . | . . . Construction Impeded . | . . . Haulers Reinforced . | . . . Active Scanning Responses . | . . . Cargo Convoy Interrupts . | . . . Stealth | -11 -10 -9 --------- Run | Yrd Mat Mat Distress Signals . | . . . Communications Jammed . | . . . Distress Signals . | . . . Times Spotted 29 | . 17 12 Peak Tracking Total 5 | . 2 5 Tactical Retreats 1 | . . 1 Traps | -11 -10 -9 ------- Run | Yrd Mat Mat Traps Triggered 1 | . 1 . Indirectly . | . . . Trap Hack Attempts . | . . . Triggered . | . . . Disarmed . | . . . Reprogrammed . | . . . Reused . | . . . Traps Extracted . | . . . Installed . | . . . Triggered . | . . . Machines | -11 -10 -9 ---------- Run | Yrd Mat Mat Machines Disabled 3 | . 3 . Max in Single Turn 1 | . 1 . Machines Repaired . | . . . Machines Dismantled . | . . . Machines Sabotaged . | . . . Overloaded Fab Kills . | . . . Hacking | -11 -10 -9 --------- Run | Yrd Mat Mat Machines Accessed 3 | . 2 1 Terminals . | . . . Fabricators . | . . . Repair Stations 2 | . 1 1 Recycling Units 1 | . 1 . Scanalyzers . | . . . Garrison Access . | . . . Total Hacks 11 | . 8 3 Successful 8 | . 7 1 Failed 3 | . 1 2 Catastrophic 1 | . . 1 Database Lockouts . | . . . Manual . | . . . Terminals . | . . . Fabricators . | . . . Repair Stations 9 | . 6 3 Recycling Units 2 | . 2 . Scanalyzers . | . . . Garrison Access . | . . . Terminal Hacks . | . . . Fabricator Hacks . | . . . Repair Station Hacks 6 | . 5 1 Scan Component 4 | . 3 1 Repair 2 | . 2 . Recycling Unit Hacks 2 | . 2 . Process 1 | . 1 . Report Inventory 1 | . 1 . Scanalyzer . | . . . Garrison Access Hacks . | . . . Unauthorized Hacks . | . . . Terminals . | . . . Fabricators . | . . . Repair Stations . | . . . Recycling Units . | . . . Scanalyzers . | . . . Garrison Access . | . . . Data Cores Recovered 1 | . . 1 Used . | . . . Hacking Detections 3 | . 2 1 Full Trace Events . | . . . Feedback Events . | . . . Feedback Blocked . | . . . Robot Schematics Acquired . | . . . Robots Built . | . . . Authchips . | . . . Time . | . . . Total Robot Build Rating . | . . . Part Schematics Acquired . | . . . Parts Built . | . . . Authchips . | . . . Time . | . . . Total Part Build Rating . | . . . Parts Repaired 2 | . 2 . Time 52 | . 52 . Parts Recycled . | . . . Recycled Matter 112 | . 112 . Retrieved Matter . | . . . Retrieved Components . | . . . Parts Scanalyzed . | . . . Part Schematics Acquired . | . . . Parts Damaged . | . . . Bothacking | -11 -10 -9 ------------ Run | Yrd Mat Mat Used RIF Installer . | . . . Robots Hacked . | . . . Non-combat . | . . . Combat . | . . . Robot Hacks Applied . | . . . Relay Couplers Released . | . . . Fabnet Peak Effective % . | . . . Robots Rewired . | . . . Allies Hacked . | . . . Hacks Repelled . | . . . Allies | -11 -10 -9 -------- Run | Yrd Mat Mat Total Allies . | . . . Largest Group . | . . . Highest-Rated Group . | . . . Highest-Rated Ally . | . . . Total Orders . | . . . Ally Attacks . | . . . Total Damage . | . . . Kills . | . . . Allies Corrupted . | . . . Allies Melted . | . . . Intel | -11 -10 -9 ------- Run | Yrd Mat Mat Robot Analysis Total . | . . . Derelict Logs Recovered . | . . . Drone Launches . | . . . Drone Recoveries . | . . . Exploration | -11 -10 -9 ------------- Run | Yrd Mat Mat Turns Passed 1601 | 72 1223 306 Spaces Moved 777 | 44 610 123 Core 11 | 11 . . Treads 766 | 33 610 123 Legs . | . . . Wheels . | . . . Hover . | . . . Flight . | . . . Fastest Speed 50 | 50 160 160 Average Speed 158 | 132 160 160 Slowest Speed 160 | 160 160 160 Overloaded Moves . | . . . Propulsion Burnouts . | . . . Robots Hopped . | . . . Cave-ins Triggered . | . . . Exploration Rate (%) 32 | 5 78 13 Regions Visited 2 Branch Regions . Pre-discovered Areas . | . . . Known Exits Taken . | . . . Unknown Exits Taken 2 | 1 1 . Scrap Searched . | . . . Spaces Dug . | . . . Terrain Destroyed 39 | . 24 15 Melee . | . . . Projectile . | . . . AOE 39 | . 24 15 Terrain Rammed . | . . . Walls Destroyed . | . . . Machines Disabled . | . . . Actions | -11 -10 -9 --------- Run | Yrd Mat Mat Total 989 | 58 762 169 Wait 57 | 1 56 . Move 775 | 43 609 123 Hop . | . . . Pick Up 26 | 8 17 1 Fast Attach 2 | . 2 . Attach 21 | 6 8 7 Detach 1 | . 1 . Swap 2 | . 2 . Drop 5 | . 5 . Fire 100 | . 62 38 Melee . | . . . Ram . | . . . Kick . | . . . Crush . | . . . Escape Stasis . | . . . Rewire . | . . . Trap . | . . . Miscellaneous . | . . . Route ------- -11/Scrapyard -10/Materials (discovered 5 exits: *Mat x3 / [*Min x2]) -9/Materials (discovered 1 exit: [*Min]) History --------- Turn | Location | Event 6 | -11/Scrapyard | Discovered new exit (range 14) 73 | -11/Scrapyard | Entered Materials 211 | -10/Materials | Discovered new exit (range 5) 321 | -10/Materials | Build established: Mutant 344 | -10/Materials | Repaired Lgt. Treads 371 | -10/Materials | Repaired Lgt. Treads 379 | -10/Materials | Discovered new exit (range 16) 499 | -10/Materials | Discovered new exit (range 16) 801 | -10/Materials | Discovered new exit (range 3) 810 | -10/Materials | Core integrity fell below 50% 967 | -10/Materials | Discovered new exit (range 8) 1296 | -10/Materials | Entered another Materials area 1296 | -9/Materials | Evolved 2 slots: Utility x2 1504 | -9/Materials | Discovered new exit (range 16) 1583 | -9/Materials | Core integrity fell below 50% 1600 | -9/Materials | Core integrity fell below 20% 1602 | -9/Materials | Destroyed by L-31 Rogue with Katana Last Messages --------------- 01566_ Y-45 Defender destroyed. 01568_ Lgt. Treads destroyed. 01569_ L-31 Rogue knocked back. 01572_ Lgt. Cannon severed. 01574_ Lgt. Ion Engine destroyed. 01579_ Grenade Launcher destroyed. 01585_ M-13 Machinist repairs L-31 Rogue. 01587_ Grenade Launcher destroyed. 01592_ G-34 Mercenary destroyed. 01592_ Ion Engine destroyed. 01592_ Destroyed Ion Engine. 01592_ Grenade Launcher severed. 01595_ U-05 Engineer lays Concrete. 01597_ U-05 Engineer builds a Wall. 01599_ R-06 Scavenger collects Lgt. Armor Plating. 01599_ U-05 Engineer builds a Wall. 01600_ U-05 Engineer lays Concrete. 01601_ R-06 Scavenger destroyed. 01601_ U-05 Engineer builds a Wall. Map ----- +----------------------------------------------------+ | | | | | | | | | | | | | | | | | | | | | | | | | | | | | | | ?????????????????????????????????????????????????? | | ########??##########?????????????????????????????? | | #??# #?????????????????????????????? | | #??# """ #?????##??????????????????????? | | #??# """ ######[#??????????????????????? | | #??# """ # %##?????????????????????? | | "" """ #??# """ # =] ?????????????????????? | | "" """ #??# """ =] #?????????????????????? | | "" """ #??# # = #?????????????????????? | | #??# % l #?????????????????????? | | ##+#####??# # =%=@ #?????????????????????? | | ##########+###### * ] #?????????????????????? | | T u ##?????????????????????? | | u %*%=